bitfinex-derivatives/quotes_BTCF0:USTF0_20250330
["timestamp","ask_amount","ask_price","bid_price","bid_amount"]
[1743303318727,0.19747911,83328.0,83327.0,0.09498]
[1743303319332,0.19747911,83328.0,83327.0,0.2150227]
[1743303321421,0.19747911,83328.0,83327.0,0.06438]
[1743303321623,0.22777911,83328.0,83327.0,0.06438]
[1743303322228,0.2373311,83328.0,83327.0,0.06438]
[1743303322934,0.2070311,83328.0,83327.0,0.06438]
[1743303323532,0.3270711,83328.0,83327.0,0.06438]
[1743303324735,0.3434933,83328.0,83327.0,0.06438]
[1743303326535,0.3434933,83328.0,83327.0,0.1844227]
[1743303326734,0.3434933,83328.0,83327.0,0.06438]
[1743303327637,0.3434933,83328.0,83327.0,0.0637]
[1743303327824,0.3434933,83328.0,83327.0,0.0311]
[1743303328023,0.120047,83324.0,83323.0,0.03338006]
[1743303328321,0.13981166,83324.0,83323.0,0.00048006]
[1743303328527,0.1200513,83321.0,83319.0,0.00017993]
[1743303328729,0.49146786,83321.0,83319.0,0.00017993]
[1743303328923,0.49146786,83321.0,83320.0,0.00068]
[1743303329124,0.49146786,83321.0,83320.0,8e-05]
[1743303329324,0.49146786,83321.0,83319.0,0.00017993]
[1743303329325,0.1200528,83320.0,83319.0,0.00017993]
[1743303329625,0.19526936,83320.0,83319.0,0.03297993]
[1743303329826,0.19526936,83320.0,83319.0,0.03357993]
[1743303330133,0.21731104,83320.0,83319.0,0.03357993]
[1743303331133,0.20759313,83320.0,83319.0,0.03357993]
[1743303331536,0.20859313,83320.0,83319.0,0.03357993]
[1743303332035,0.20959313,83320.0,83319.0,0.03357993]
[1743303332225,0.19981657,83320.0,83319.0,0.03297993]
[1743303333039,0.19981657,83320.0,83319.0,0.15303413]
[1743303333334,0.19981657,83320.0,83319.0,0.03357993]
[1743303334238,0.56061657,83320.0,83319.0,0.03357993]
[1743303334936,0.19981657,83320.0,83319.0,0.03357993]
[1743303335141,0.56061657,83320.0,83319.0,0.03357993]
[1743303335932,0.1200556,83318.0,83317.0,8e-05]
[1743303336135,0.1200628,83313.0,83312.0,0.032]
[1743303336333,0.12110281,83313.0,83312.0,0.0326]
[1743303336932,0.18460281,83313.0,83312.0,0.0326]
[1743303337631,0.18460281,83313.0,83312.0,0.0006]
[1743303338328,0.19415597,83313.0,83312.0,0.0006]
[1743303338735,0.19415597,83313.0,83312.0,0.0016]
[1743303341235,0.31471597,83313.0,83312.0,0.1216643]
[1743303341643,0.31467597,83313.0,83312.0,0.1216643]
[1743303342034,0.31467597,83313.0,83312.0,0.1517643]
[1743303344247,0.30512281,83313.0,83312.0,0.1517643]
[1743303345351,0.30560281,83313.0,83312.0,0.1517643]
[1743303347943,0.44915808,83313.0,83312.0,0.1517643]
[1743303348142,0.44915808,83313.0,83312.0,0.1511643]
[1743303348745,0.44915808,83313.0,83312.0,0.1518043]
[1743303355461,0.30560281,83313.0,83312.0,0.1518043]
[1743303360673,0.36398129,83313.0,83312.0,0.1518043]
[1743303363067,0.36398129,83313.0,83312.0,0.03174]
[1743303363268,0.36398129,83313.0,83312.0,0.1518043]
[1743303363578,0.36398129,83313.0,83312.0,0.1835043]
[1743303363767,0.08991849,83313.0,83312.0,0.1835043]
[1743303364076,0.05941849,83313.0,83312.0,0.00164]
[1743303364380,0.27388129,83313.0,83312.0,0.1210643]
[1743303364879,0.27388129,83313.0,83312.0,0.1217443]
[1743303365370,0.27388129,83313.0,83312.0,0.00168]
[1743303365570,0.27388129,83313.0,83312.0,0.001]
[1743303366982,0.1200744,83305.0,83295.0,0.28486015]
[1743303367276,0.6020344,83305.0,83304.0,0.00082004]
[1743303367672,0.72207593,83305.0,83304.0,0.00018004]
[1743303367877,0.78477593,83305.0,83304.0,0.00018004]
[1743303368474,0.78477593,83305.0,83304.0,0.00118004]
[1743303368680,0.78477593,83305.0,83304.0,0.00218004]
[1743303369177,0.78477593,83305.0,83301.0,0.21364511]
[1743303369178,0.1200787,83302.0,83301.0,0.21364511]
[1743303369379,0.1211587,83302.0,83301.0,0.21372511]
[1743303369574,0.1211587,83302.0,83301.0,0.21364511]
[1743303369974,0.24120023,83302.0,83301.0,0.21364511]
[1743303371984,0.24420023,83302.0,83301.0,0.21364511]
[1743303372481,0.24820023,83302.0,83301.0,0.21428511]
[1743303373081,0.24820023,83302.0,83301.0,0.33436521]
[1743303373278,0.06645848,83302.0,83301.0,0.1207201]
[1743303373473,0.06645848,83302.0,83301.0,0.1821201]
[1743303373680,0.18653718,83302.0,83301.0,0.1821201]
[1743303373874,0.06645848,83302.0,83301.0,0.1821201]
[1743303374074,0.18653718,83302.0,83301.0,0.1821201]
[1743303375677,0.06645848,83302.0,83301.0,0.1821201]
[1743303376486,0.00808,83302.0,83301.0,0.1821201]
[1743303378379,0.1281587,83302.0,83301.0,0.1821201]
[1743303379987,0.00808,83302.0,83301.0,0.5429201]
[1743303380687,0.10785039,83304.0,83303.0,0.1200773]
[1743303380981,0.04251046,83304.0,83303.0,0.4808773]
[1743303381187,0.04251046,83304.0,83303.0,0.4815973]
[1743303381383,0.04251046,83304.0,83303.0,0.5420973]
[1743303381776,0.04651046,83304.0,83303.0,0.5420973]
[1743303381978,0.04651046,83304.0,83303.0,0.6920973]
[1743303382584,0.04251046,83304.0,83303.0,0.6930973]
[1743303383687,0.00018004,83313.0,83312.0,0.1200643]
[1743303383885,0.00090004,83313.0,83312.0,0.4815043]
[1743303384077,0.00018004,83313.0,83312.0,0.5451043]
[1743303384281,0.12100284,83313.0,83312.0,0.42504]
[1743303384481,0.12096284,83313.0,83312.0,0.42504]
[1743303384882,0.12096284,83313.0,83312.0,0.5461043]
[1743303385199,0.19561626,83313.0,83312.0,0.42704]
[1743303386381,0.19561626,83313.0,83312.0,0.5471043]
[1743303386588,0.19561626,83313.0,83312.0,0.00264]
[1743303386789,0.55641626,83313.0,83312.0,0.002]
[1743303386988,0.55641626,83313.0,83312.0,0.00272]
[1743303387290,0.55641626,83313.0,83312.0,0.002]
[1743303389496,0.67644626,83313.0,83312.0,0.002]
[1743303392500,0.67644626,83313.0,83312.0,0.1220643]
[1743303392696,0.67644626,83313.0,83312.0,0.002]
[1743303392697,0.73483031,83313.0,83312.0,0.002]
[1743303393100,0.73483031,83313.0,83312.0,0.1220643]
[1743303393693,0.85371031,83313.0,83312.0,0.1220643]
[1743303395395,0.85371031,83313.0,83312.0,0.002]
[1743303400599,0.85371031,83313.0,83310.0,8e-05]
[1743303400600,0.0600336,83310.0,83297.0,0.1200763]
[1743303400808,0.4808859,83298.0,83297.0,0.2117164]
[1743303401010,0.36152,83298.0,83297.0,0.2421164]
[1743303401203,0.00072,83298.0,83297.0,0.2427964]
[1743303401503,0.11872,83302.0,83301.0,0.1200801]
[1743303401705,0.11948,83302.0,83301.0,0.1208001]
[1743303401905,0.18318,83302.0,83301.0,0.1208001]
[1743303402305,0.18318,83302.0,83301.0,0.2145001]
[1743303402699,0.18242,83302.0,83301.0,0.2145001]
[1743303403301,0.3032187,83302.0,83301.0,0.2145001]
[1743303404797,0.3032187,83302.0,83301.0,0.2165001]
[1743303404997,0.3032187,83302.0,83301.0,0.2185001]
[1743303405605,0.1844987,83302.0,83301.0,0.2185001]
[1743303405805,0.00072,83302.0,83301.0,0.2185001]
[1743303406009,0.11856,83309.0,83308.0,0.1200701]
[1743303406195,0.11856,83309.0,83308.0,0.1207101]
[1743303406196,0.11932,83309.0,83308.0,0.1207101]
[1743303406595,0.11932,83309.0,83308.0,0.1841101]
[1743303407603,0.18262,83309.0,83308.0,0.1861101]
[1743303407799,0.06406,83309.0,83308.0,0.1861101]
[1743303408394,0.00076,83309.0,83308.0,0.5469101]
[1743303408597,0.00076,83309.0,83308.0,0.5489101]
[1743303408799,0.17970833,83311.0,83310.0,0.1200672]
[1743303409003,0.18042833,83311.0,83310.0,0.1207072]
[1743303410204,0.18042833,83311.0,83310.0,0.1217072]
[1743303410608,0.18042833,83311.0,83310.0,0.1227072]
[1743303410812,0.00072,83311.0,83310.0,0.1227072]
[1743303412308,0.00018004,83313.0,83312.0,0.1200643]
[1743303412504,0.00018004,83313.0,83312.0,0.1207043]
[1743303412899,0.00018004,83313.0,83312.0,0.1837043]
[1743303413603,0.00018004,83313.0,83312.0,0.1847043]
[1743303413804,0.00018004,83313.0,83312.0,0.1857043]
[1743303414507,0.00018004,83313.0,83312.0,0.1847043]
[1743303414698,0.00018004,83313.0,83312.0,0.1857043]
[1743303416296,0.00018004,83313.0,83312.0,0.1847043]
[1743303416505,0.00018004,83313.0,83312.0,0.1857043]
[1743303417702,0.00090004,83313.0,83312.0,0.1857043]
[1743303418305,0.00018004,83313.0,83312.0,0.1857043]
[1743303419609,0.06500004,83313.0,83312.0,0.1857043]
[1743303419911,0.06428004,83313.0,83312.0,0.1857043]
[1743303420315,0.06500004,83313.0,83312.0,0.1857043]
[1743303421907,0.06508004,83313.0,83312.0,0.1857043]
[1743303426918,0.06428004,83313.0,83312.0,0.1857043]
[1743303427419,0.06504004,83313.0,83312.0,0.1857043]
[1743303428010,0.06504004,83313.0,83312.0,0.1554043]
[1743303428917,0.0770739,83313.0,83312.0,0.1554043]
[1743303430717,0.0770739,83313.0,83312.0,0.1227043]
[1743303431411,0.06504004,83313.0,83312.0,0.1227043]
[1743303432115,0.06504004,83313.0,83312.0,0.1536043]
[1743303434311,0.06379004,83313.0,83312.0,0.1536043]
[1743303436416,0.06375004,83313.0,83312.0,0.1536043]
[1743303437114,0.06303004,83313.0,83312.0,0.1536043]
[1743303437314,0.18381284,83313.0,83312.0,0.1227043]
[1743303437720,0.06375004,83313.0,83312.0,0.1227043]
[1743303438028,0.08358027,83313.0,83312.0,0.1227043]
[1743303440920,0.08358027,83313.0,83312.0,0.1550043]
[1743303441122,0.07371634,83313.0,83312.0,0.1550043]
[1743303441928,0.07371634,83313.0,83312.0,0.1227043]
[1743303442519,0.07371634,83313.0,83312.0,0.1202043]
[1743303443223,0.0424863,83313.0,83312.0,0.1202043]
[1743303443420,0.0749863,83313.0,83312.0,0.2146043]
[1743303443821,0.0106863,83313.0,83312.0,0.2146043]
[1743303444223,0.0099663,83313.0,83312.0,0.2146043]
[1743303444621,0.17970833,83317.0,83316.0,0.1200585]
[1743303444827,0.19019996,83317.0,83316.0,0.1207785]
[1743303445128,0.25239996,83317.0,83316.0,0.1207785]
[1743303445626,0.25239996,83317.0,83316.0,0.1846785]
[1743303445928,0.24370833,83317.0,83316.0,0.1846785]
[1743303447427,0.21240833,83317.0,83316.0,0.1846785]
[1743303448130,0.0327,83317.0,83316.0,0.1846785]
[1743303448428,0.0319,83317.0,83316.0,0.1846785]
[1743303449727,0.0319,83317.0,83316.0,0.19666677]
[1743303451023,0.0319,83317.0,83316.0,0.1846785]
[1743303451435,0.0319,83317.0,83316.0,0.1207785]
[1743303451933,0.03262,83317.0,83316.0,0.1207785]
[1743303453523,0.0319,83317.0,83316.0,0.1207785]
[1743303453733,0.1526771,83317.0,83316.0,0.1207785]
[1743303454426,0.5134771,83317.0,83316.0,0.00072]
[1743303454629,0.1200643,83312.0,83311.0,0.21507525]
[1743303454824,0.1207843,83312.0,83311.0,0.21571525]
[1743303455227,0.1207843,83312.0,83311.0,0.33578095]
[1743303455626,0.1857843,83312.0,83311.0,0.33578095]
[1743303456031,0.1857843,83312.0,83311.0,0.1207057]
[1743303456736,0.1857843,83312.0,83311.0,0.1217057]
[1743303456939,0.1857843,83312.0,83311.0,0.1227057]
[1743303457436,0.19802855,83312.0,83311.0,0.1227057]
[1743303458234,0.19802855,83312.0,83311.0,0.1220657]
[1743303459130,0.2564016,83312.0,83311.0,0.1220657]
[1743303462734,0.2564016,83312.0,83311.0,0.1227457]
[1743303466533,0.3745616,83312.0,83311.0,0.1227457]
[1743303466729,0.3745616,83312.0,83311.0,0.1220657]
[1743303466946,0.4958815,83312.0,83311.0,0.1220657]
[1743303467147,0.4958815,83312.0,83311.0,0.1227057]
[1743303467438,0.24541295,83312.0,83311.0,0.1220657]
[1743303467643,0.18041295,83312.0,83311.0,0.5137057]
[1743303469538,0.18041295,83312.0,83311.0,0.1529057]
[1743303470155,0.18041295,83312.0,83311.0,0.1833057]
[1743303470540,0.00072,83312.0,83311.0,0.1833057]
[1743303470845,0.00072,83312.0,83311.0,0.5441057]
[1743303471047,0.14389148,83321.0,83320.0,0.1200528]
[1743303471241,0.14389148,83321.0,83320.0,0.4814928]
[1743303471242,0.14253148,83321.0,83320.0,0.4814928]
[1743303471434,0.14253148,83321.0,83320.0,1.0479928]
[1743303471638,0.14253148,83321.0,83320.0,0.8979928]
[1743303471639,0.14181148,83321.0,83320.0,0.8979928]
[1743303471839,0.14181148,83321.0,83320.0,0.9633928]
[1743303472548,0.14481148,83321.0,83320.0,0.9633928]
[1743303474039,0.003,83321.0,83320.0,0.9633928]
[1743303478344,0.003,83321.0,83320.0,0.9951928]
[1743303481658,0.003,83321.0,83320.0,0.5786928]
[1743303484748,0.003,83321.0,83320.0,0.5142928]
[1743303485157,0.00372,83321.0,83320.0,0.5142928]
[1743303485358,0.003,83321.0,83320.0,0.5142928]
[1743303485761,0.00372,83321.0,83320.0,0.5142928]
[1743303487865,0.00372,83321.0,83320.0,0.5464928]
[1743303487866,0.003,83321.0,83320.0,0.5464928]
[1743303490863,0.003,83321.0,83320.0,0.55855697]
[1743303491564,0.003,83321.0,83320.0,0.5464928]
[1743303491769,0.003,83321.0,83320.0,0.5142928]
[1743303492972,0.00372,83321.0,83320.0,0.5142928]
[1743303493177,0.003,83321.0,83320.0,0.5142928]
[1743303493770,0.003,83321.0,83320.0,0.5461928]
[1743303493973,0.003,83321.0,83320.0,0.55823531]
[1743303501481,0.002,83321.0,83320.0,0.56023531]
[1743303501680,0.0634,83325.0,83324.0,0.120047]
[1743303501884,0.0634,83325.0,83324.0,0.120687]
[1743303502582,0.0634,83325.0,83324.0,0.152387]
[1743303502782,0.0634,83325.0,83324.0,0.182887]
[1743303503282,0.0644,83325.0,83324.0,0.182887]
[1743303503485,0.001,83325.0,83324.0,0.182887]
[1743303504881,0.00018004,83329.0,83328.0,0.1200412]
[1743303505080,0.00090004,83329.0,83328.0,0.4815612]
[1743303505279,0.00094004,83329.0,83328.0,0.4815612]
[1743303505887,0.00094004,83329.0,83328.0,0.5436612]
[1743303506275,0.00094004,83329.0,83328.0,0.1828612]
[1743303506590,0.00094004,83329.0,83328.0,0.5456612]
[1743303506792,0.00018004,83329.0,83328.0,0.5476612]
[1743303508189,0.00018004,83329.0,83328.0,0.9641612]
[1743303510682,0.00018004,83329.0,83328.0,1.17920719]
[1743303515280,0.00018004,83329.0,83328.0,0.9641612]
[1743303519789,0.00018004,83329.0,83328.0,1.0818412]
[1743303520098,0.12021984,83329.0,83328.0,0.42122]
[1743303520395,0.00018004,83329.0,83328.0,0.5412612]
[1743303520596,0.01226589,83329.0,83328.0,0.5412612]
[1743303520891,0.00018004,83329.0,83328.0,0.5412612]
[1743303521481,0.12021984,83329.0,83328.0,0.5412612]
[1743303521688,0.12097984,83329.0,83328.0,0.5412612]
[1743303522490,0.00094004,83329.0,83328.0,0.5412612]
[1743303522695,0.00018004,83329.0,83328.0,0.5412612]
[1743303525799,0.00018004,83329.0,83328.0,0.1247612]
[1743303526503,0.00098004,83329.0,83328.0,0.1247612]
[1743303526698,0.00018004,83329.0,83328.0,0.1247612]
[1743303528699,0.00090004,83329.0,83328.0,0.1247612]
[1743303537312,0.00090004,83329.0,83328.0,0.2222612]
[1743303537706,0.00090004,83329.0,83328.0,0.1890612]
[1743303538914,0.00090004,83329.0,83328.0,0.1560612]
[1743303539111,0.00090004,83329.0,83328.0,0.1247612]
[1743303543710,0.00090004,83329.0,83328.0,0.2203612]
[1743303545220,0.00018004,83329.0,83328.0,0.2203612]
[1743303545417,0.00090004,83329.0,83328.0,0.2203612]
[1743303545614,0.0096889,83329.0,83328.0,0.2203612]
[1743303545919,0.0104089,83329.0,83328.0,0.2203612]
[1743303546819,0.0104281,83329.0,83328.0,0.2203612]
[1743303547615,0.0104281,83329.0,83328.0,0.5811612]
[1743303549116,0.0104281,83329.0,83328.0,0.9976612]
[1743303549327,0.0097081,83329.0,83328.0,0.9976612]
[1743303549722,0.01940776,83329.0,83328.0,0.9976612]
[1743303550025,0.01940776,83329.0,83328.0,0.9331612]
[1743303550220,0.08220776,83329.0,83328.0,0.9331612]
[1743303550430,0.08292776,83329.0,83328.0,0.9331612]
[1743303550612,0.08286934,83329.0,83328.0,0.9331612]
[1743303550813,0.08286937,83329.0,83328.0,0.9331612]
[1743303551524,0.08214937,83329.0,83328.0,0.9331612]
[1743303555023,0.08214937,83329.0,83328.0,0.5166612]
[1743303555226,0.08290937,83329.0,83328.0,0.5166612]
[1743303556119,0.08290937,83329.0,83328.0,0.4855612]
[1743303556320,0.08292082,83329.0,83328.0,0.4855612]
[1743303558625,0.08296082,83329.0,83328.0,0.4855612]
[1743303558928,0.07326116,83329.0,83328.0,0.4855612]
[1743303559530,0.03348004,83329.0,83328.0,0.5184612]
[1743303559731,0.00018004,83329.0,83328.0,0.5184612]
[1743303562322,0.00018004,83329.0,83328.0,0.73337765]
[1743303566738,0.00018004,83329.0,83328.0,1.14987765]
[1743303570025,0.00018004,83329.0,83328.0,1.51067765]
[1743303570427,0.00018004,83329.0,83328.0,1.2957612]
[1743303573529,0.00018004,83329.0,83328.0,1.2977612]
[1743303574932,0.00018004,83329.0,83328.0,1.4141212]
[1743303575730,0.00018004,83329.0,83328.0,1.4151212]
[1743303576436,0.00018004,83329.0,83328.0,1.4161212]
[1743303576632,0.00018004,83329.0,83328.0,1.4141212]
[1743303576838,0.0004,83332.0,83331.0,0.1200369]
[1743303577137,0.0004,83332.0,83331.0,0.1206769]
[1743303577937,0.0004,83332.0,83331.0,0.1527769]
[1743303578343,0.0004,83332.0,83331.0,0.1537769]
[1743303578734,0.0004,83332.0,83331.0,0.1547769]
[1743303581038,0.0004,83332.0,83331.0,0.8763769]
[1743303581438,0.0004,83332.0,83331.0,1.2928769]
[1743303584536,0.00018004,83340.0,83339.0,0.1200254]
[1743303584742,0.00018004,83340.0,83339.0,0.5977054]
[1743303585338,0.00018004,83340.0,83339.0,0.6624054]
[1743303586031,0.00118004,83340.0,83339.0,0.6624054]
[1743303586447,0.00218004,83340.0,83339.0,0.6624054]
[1743303587043,0.00118004,83340.0,83339.0,0.6644054]
[1743303587242,0.00118004,83340.0,83339.0,1.0809054]
[1743303588043,0.00018004,83340.0,83339.0,1.0819054]
[1743303589143,0.00018004,83340.0,83339.0,1.4427054]
[1743303591049,0.00018004,83340.0,83339.0,1.3780054]
[1743303592534,0.00018004,83340.0,83339.0,1.66413694]
[1743303592739,0.00018004,83340.0,83339.0,0.94253694]
[1743303593040,0.00018004,83340.0,83339.0,1.66413694]
[1743303594048,0.00018004,83340.0,83339.0,1.66417694]
[1743303596047,0.00018004,83340.0,83339.0,1.3780454]
[1743303596242,0.00018004,83340.0,83339.0,1.2617654]
[1743303598342,0.00018004,83340.0,83339.0,0.9009654]
[1743303601450,0.0313,83346.0,83345.0,0.1200167]
[1743303601646,0.03202,83346.0,83345.0,0.5978167]
[1743303601846,0.0313,83346.0,83345.0,0.60959024]
[1743303602045,0.0321,83346.0,83345.0,0.60959024]
[1743303602446,0.0321,83346.0,83345.0,0.64089024]
[1743303603248,0.03202,83346.0,83345.0,0.64089024]
[1743303603643,0.03202,83346.0,83345.0,0.67409024]
[1743303604047,0.03202,83346.0,83345.0,0.49323024]
[1743303604257,0.0313,83346.0,83345.0,0.49323024]
[1743303605848,0.0313,83346.0,83345.0,0.4814567]
[1743303606749,0.0313,83346.0,83345.0,0.49366096]
[1743303607244,0.0313,83346.0,83345.0,0.4814567]
[1743303610852,0.03202,83346.0,83345.0,0.4814567]
[1743303611347,0.1520353,83346.0,83345.0,0.1206567]
[1743303611549,0.1520353,83346.0,83345.0,0.00064]
[1743303612060,0.1520353,83346.0,83345.0,0.1206567]
[1743303613452,0.16419801,83346.0,83345.0,0.1206567]
[1743303614361,0.40224198,83346.0,83345.0,0.1206567]
[1743303614555,0.38650397,83346.0,83345.0,0.1206567]
[1743303614957,0.39880983,83346.0,83345.0,0.1206567]
[1743303615159,0.42980983,83346.0,83345.0,0.1206567]
[1743303616263,0.54982513,83346.0,83345.0,0.1206567]
[1743303617963,0.4555809,83346.0,83345.0,0.1206567]
[1743303618261,0.3391409,83346.0,83345.0,0.1206567]
[1743303618463,0.20681974,83346.0,83345.0,0.1206567]
[1743303618661,0.20681974,83346.0,83345.0,0.1521567]
[1743303619062,0.20681974,83346.0,83345.0,0.16403432]
[1743303620170,0.20681974,83346.0,83345.0,0.1521567]
[1743303621060,0.32683504,83346.0,83345.0,0.1206567]
[1743303621260,0.20681974,83346.0,83345.0,0.1206567]
[1743303621464,0.17084718,83346.0,83345.0,0.1206567]
[1743303622653,0.17084718,83346.0,83345.0,0.1529567]
[1743303624374,0.06302,83346.0,83345.0,0.1529567]
[1743303627865,0.1830353,83346.0,83345.0,0.1529567]
[1743303628261,0.06302,83346.0,83345.0,0.1529567]
[1743303629056,0.06302,83346.0,83345.0,0.1206567]
[1743303629664,0.06302,83346.0,83345.0,0.1523567]
[1743303630460,0.06302,83346.0,83345.0,0.1830567]
[1743303632565,0.00072,83346.0,83345.0,0.1830567]
[1743303634172,0.03092,83346.0,83345.0,0.1830567]
[1743303634473,0.0302,83346.0,83345.0,0.1830567]
[1743303636067,0.0312,83347.0,83346.0,0.1200153]
[1743303636359,0.03192,83347.0,83346.0,0.2129553]
[1743303636562,0.03196,83347.0,83346.0,0.2129553]
[1743303636763,0.06236,83347.0,83346.0,0.2129553]
[1743303637065,0.03196,83347.0,83346.0,0.2129553]
[1743303637261,0.0312,83347.0,83346.0,0.2129553]
[1743303637467,0.03192,83347.0,83346.0,0.2129553]
[1743303638563,0.00072,83347.0,83346.0,0.2129553]
[1743303638767,0.10826275,83348.0,83347.0,0.1200139]
[1743303638987,0.10826275,83348.0,83347.0,0.1206139]
[1743303639168,0.10826275,83348.0,83347.0,0.1860139]
[1743303639863,0.0004,83348.0,83347.0,0.1860139]
[1743303640071,0.14381701,83351.0,83350.0,0.1200095]
[1743303640273,0.14449701,83351.0,83350.0,0.5976495]
[1743303640477,0.14381701,83351.0,83350.0,0.5976495]
[1743303643877,0.00068,83351.0,83350.0,0.88378104]
[1743303644070,0.00017959,83354.0,83353.0,0.1200052]
[1743303644276,0.00017959,83354.0,83353.0,0.4814852]
[1743303645275,0.0004,83364.0,83363.0,0.1199908]
[1743303645572,0.14381701,83371.0,83370.0,0.1199808]
[1743303645769,0.14449701,83371.0,83370.0,0.4813808]
[1743303646777,0.14549701,83371.0,83370.0,0.4813808]
[1743303647282,0.14549701,83371.0,83370.0,0.90970183]
[1743303647580,0.14549701,83371.0,83370.0,0.97470183]
[1743303647776,0.003,83371.0,83370.0,0.97470183]
[1743303648176,0.003,83371.0,83370.0,0.98374883]
[1743303652880,0.002,83371.0,83370.0,0.98374883]
[1743303656691,0.002,83371.0,83370.0,1.10014883]
[1743303658191,0.002,83371.0,83370.0,1.46094883]
[1743303663995,0.002,83371.0,83370.0,0.73934883]
[1743303664185,0.002,83371.0,83370.0,1.46094883]
[1743303665281,0.002,83371.0,83370.0,1.34454883]
[1743303665486,0.002,83371.0,83370.0,1.42864883]
[1743303665792,0.002,83371.0,83370.0,1.39598883]
[1743303666390,0.002,83371.0,83370.0,0.97948883]
[1743303667493,0.002,83371.0,83370.0,0.85400183]
[1743303667694,0.002,83371.0,83370.0,0.8421808]
[1743303669891,0.002,83371.0,83370.0,0.1205808]
[1743303670093,0.00268,83371.0,83370.0,0.1205808]
[1743303670502,0.06598,83371.0,83370.0,0.1205808]
[1743303670895,0.1859593,83371.0,83370.0,0.1205808]
[1743303671099,0.19537677,83371.0,83370.0,0.1205808]
[1743303671302,0.20503166,83371.0,83370.0,0.1205808]
[1743303671692,0.35503166,83371.0,83370.0,0.1205808]
[1743303671900,0.35503166,83371.0,83370.0,0.1199808]
[1743303672099,0.34561419,83371.0,83370.0,0.1199808]
[1743303672498,0.3359593,83371.0,83370.0,0.1199808]
[1743303673089,0.1199808,83370.0,83369.0,8e-05]
[1743303673295,0.19367836,83370.0,83369.0,0.1200622]
[1743303673603,0.35333258,83370.0,83369.0,0.1199822]
[1743303674000,0.46386296,83370.0,83369.0,0.1199822]
[1743303674506,0.46486296,83370.0,83369.0,0.1199822]
[1743303675705,0.45520874,83370.0,83369.0,0.1199822]
[1743303676690,0.81900874,83370.0,83369.0,0.1199822]
[1743303677301,0.82100874,83370.0,83369.0,0.1199822]
[1743303680601,0.83060802,83370.0,83369.0,0.1199822]
[1743303681005,0.56066008,83370.0,83369.0,0.1199822]
[1743303681304,0.6676608,83370.0,83369.0,0.1207022]
[1743303684022,0.6675808,83370.0,83369.0,0.1207022]
[1743303685307,0.3067808,83370.0,83369.0,0.1207022]
[1743303685506,0.07028,83370.0,83369.0,0.1207022]
[1743303685905,0.07028,83370.0,83369.0,0.1522022]
[1743303686704,0.06728,83370.0,83369.0,0.1522022]
[1743303687212,0.1872608,83370.0,83369.0,0.1522022]
[1743303688507,0.06728,83370.0,83369.0,0.1522022]
[1743303689011,0.06828,83370.0,83369.0,0.1522022]
[1743303689507,0.03748,83370.0,83369.0,0.1522022]
[1743303690014,0.00368,83370.0,83369.0,0.1522022]
[1743303690203,0.001,83370.0,83369.0,0.1522022]
[1743303690405,0.003,83370.0,83369.0,0.1522022]
[1743303691006,0.001,83370.0,83369.0,0.1640982]
[1743303691307,0.003,83370.0,83369.0,0.1640982]
[1743303691611,0.002,83370.0,83369.0,0.1640982]
[1743303691817,0.003,83370.0,83369.0,0.1640982]
[1743303692305,0.002,83370.0,83369.0,0.1660982]
[1743303692706,0.002,83370.0,83369.0,0.2824982]
[1743303693205,0.0004,83380.0,83379.0,0.1199678]
[1743303693413,0.00112,83380.0,83379.0,0.4814078]
[1743303693614,0.0004,83380.0,83379.0,0.4814078]
[1743303694111,0.0004,83380.0,83379.0,0.5460078]
[1743303695114,0.0014,83380.0,83379.0,0.5460078]
[1743303695816,0.0024,83380.0,83379.0,0.5460078]
[1743303698507,0.0024,83380.0,83379.0,0.5129078]
[1743303699607,0.01441396,83380.0,83379.0,0.5129078]
[1743303700319,0.01517396,83380.0,83379.0,0.1521078]
[1743303702009,0.01517396,83380.0,83379.0,0.1206078]
[1743303702010,0.01441396,83380.0,83379.0,0.1206078]
[1743303702313,0.0024,83380.0,83379.0,0.1206078]
[1743303702617,0.0024,83380.0,83379.0,0.1858078]
[1743303702820,0.06638,83380.0,83379.0,0.1858078]
[1743303703409,0.1863464,83380.0,83379.0,0.1206078]
[1743303703613,0.1863464,83380.0,83379.0,0.00064]
[1743303703809,0.1863464,83380.0,83378.0,8e-05]
[1743303703810,0.1199678,83379.0,83378.0,8e-05]
[1743303704120,0.1206478,83379.0,83378.0,0.1199692]
[1743303704312,0.1842478,83379.0,83378.0,0.1206492]
[1743303704714,0.1842478,83379.0,83378.0,0.00068]
[1743303704905,0.1199692,83378.0,83377.0,0.1200507]
[1743303705109,0.1206892,83378.0,83377.0,0.1206107]
[1743303705316,0.1842892,83378.0,83377.0,0.1206107]
[1743303706211,0.1852892,83378.0,83377.0,0.1206107]
[1743303706818,0.1852892,83378.0,83377.0,0.00064]
[1743303707016,0.1199707,83377.0,83376.0,0.1200521]
[1743303707317,0.1206507,83377.0,83376.0,0.1206521]
[1743303707518,0.1841507,83377.0,83376.0,0.1206521]
[1743303707717,0.1841507,83377.0,83376.0,0.00068]
[1743303708019,0.1841507,83377.0,83376.0,8e-05]
[1743303710218,0.1841507,83377.0,83376.0,0.1200521]
[1743303710422,0.1841507,83377.0,83376.0,8e-05]
[1743303710924,0.1841507,83377.0,83376.0,0.00068]
[1743303711118,0.1841507,83377.0,83376.0,8e-05]
[1743303711323,0.19376326,83377.0,83376.0,8e-05]
[1743303711924,0.19376326,83377.0,83376.0,0.1200521]
[1743303712424,0.19376326,83377.0,83376.0,8e-05]
[1743303713517,0.19376326,83377.0,83368.0,8e-05]
[1743303713518,0.1199822,83369.0,83368.0,8e-05]
[1743303713714,0.1199822,83369.0,83362.0,0.00017993]
[1743303713715,0.1199908,83363.0,83362.0,0.18016293]
[1743303713915,0.1206708,83363.0,83362.0,0.18076293]
[1743303714319,0.1206708,83363.0,83362.0,0.06077493]
[1743303714320,0.13033446,83363.0,83362.0,0.06077493]
[1743303714617,0.19937232,83363.0,83362.0,0.06077493]
[1743303714809,0.19937232,83363.0,83362.0,0.00477993]
[1743303715418,0.19937232,83363.0,83362.0,0.00877993]
[1743303715726,0.19937232,83363.0,83362.0,0.12877223]
[1743303716020,0.19937232,83363.0,83362.0,0.00877993]
[1743303716524,0.05108152,83363.0,83362.0,0.12877223]
[1743303716717,0.05108152,83363.0,83362.0,0.12885223]
[1743303716920,0.05106992,83363.0,83362.0,0.12885223]
[1743303717524,0.05106992,83363.0,83362.0,0.22575223]
[1743303721223,0.04141786,83363.0,83362.0,0.22575223]
[1743303721734,0.01051786,83363.0,83362.0,0.22575223]
[1743303722228,0.02021325,83363.0,83362.0,0.22575223]
[1743303722628,0.01953325,83363.0,83362.0,0.22575223]
[1743303723236,0.00983786,83363.0,83362.0,0.22575223]
[1743303724335,0.031,83366.0,83365.0,0.119988]
[1743303724536,0.03172,83366.0,83365.0,0.120628]